bitfinex/quotes_BTCUSD_20220201
["timestamp","ask_amount","ask_price","bid_price","bid_amount"]
[1643733338707,0.00016587,39057.0,39050.0,0.02084115]
[1643733339367,0.27094575,39053.0,39050.0,0.02084115]
[1643733339505,0.00016587,39057.0,39050.0,0.03898591]
[1643733339707,0.00016587,39057.0,39051.0,0.064016]
[1643733339940,0.002,39058.0,39050.0,0.01814476]
[1643733340140,0.064019,39059.0,39050.0,0.01814476]
[1643733340141,0.001,39060.0,39052.0,0.06401533]
[1643733340340,0.07811273,39059.0,39050.0,0.2287688]
[1643733340545,0.24742886,39057.0,39050.0,0.01814476]
[1643733340940,0.22395628,39056.0,39050.0,0.01814476]
[1643733341143,0.27395628,39056.0,39050.0,0.01814476]
[1643733341343,0.0253,39055.0,39050.0,0.01814476]
[1643733341543,0.45915476,39054.0,39050.0,0.01814476]
[1643733341741,0.09161528,39053.0,39049.0,0.00148675]
[1643733341941,0.23739661,39051.0,39049.0,0.00148675]
[1643733342142,1.04196674,39050.0,39045.0,0.01894658]
[1643733342342,1.04196674,39050.0,39049.0,0.00154681]
[1643733342543,0.0253,39050.0,39049.0,0.00154681]
[1643733342845,0.11140376,39054.0,39049.0,0.00154681]
[1643733342846,0.0253,39053.0,39049.0,0.00154681]
[1643733343242,0.0253,39053.0,39045.0,0.01894658]
[1643733343594,0.0253,39053.0,39049.0,0.00154681]
[1643733343595,0.27543061,39052.0,39049.0,0.00154681]
[1643733343796,0.36768954,39052.0,39049.0,0.00154681]
[1643733344494,0.36768954,39052.0,39044.0,0.01980716]
[1643733344695,0.1961265,39047.0,39044.0,0.01980716]
[1643733345095,0.36768954,39052.0,39044.0,0.01980716]
[1643733345298,0.36768954,39052.0,39042.0,0.093475]
[1643733345496,0.36768954,39052.0,39043.0,0.21062404]
[1643733345497,0.064036,39051.0,39043.0,0.21062404]
[1643733345800,0.01606603,39045.0,39042.0,0.093475]
[1643733347000,0.01606603,39045.0,39042.0,0.09495316]
[1643733347197,0.01606603,39045.0,39043.0,0.21062404]
[1643733347444,0.01606603,39045.0,39044.0,0.045]
[1643733347645,0.01606603,39045.0,39044.0,1.57660559]
[1643733347846,0.01606603,39045.0,39044.0,1.55369969]
[1643733348047,0.01606603,39045.0,39044.0,1.00532949]
[1643733348247,0.01606603,39045.0,39044.0,0.7966298]
[1643733348449,0.01606603,39045.0,39044.0,0.045]
[1643733348746,0.01606603,39045.0,39044.0,0.23005636]
[1643733348947,0.0064481,39045.0,39044.0,0.045]
[1643733349147,0.0064481,39045.0,39044.0,0.93005636]
[1643733349347,0.0064481,39045.0,39044.0,0.44663887]
[1643733349348,0.00625899,39045.0,39044.0,0.44663887]
[1643733349546,0.00625899,39045.0,39044.0,0.05461793]
[1643733349748,0.21937148,39054.0,39045.0,0.064028]
[1643733349947,0.05,39051.0,39047.0,0.0422665]
[1643733350549,0.05,39051.0,39045.0,0.0422665]
[1643733350750,0.064029,39055.0,39047.0,0.00148588]
[1643733350954,0.27855593,39060.0,39052.0,0.045]
[1643733351195,0.473051,39059.0,39056.0,0.01821704]
[1643733351393,0.40542294,39058.0,39056.0,0.01821704]
[1643733351594,1.673051,39057.0,39056.0,0.01821704]
[1643733351794,1.88174459,39057.0,39056.0,0.01821704]
[1643733351991,1.673051,39057.0,39056.0,0.01821704]
[1643733352192,0.373051,39057.0,39056.0,0.01821704]
[1643733352596,0.473051,39057.0,39056.0,0.01821704]
[1643733352996,1.44076931,39057.0,39056.0,0.01821704]
[1643733353191,1.54076931,39057.0,39056.0,0.01821704]
[1643733353892,0.63076931,39057.0,39052.0,0.04593591]
[1643733354092,0.63076931,39057.0,39052.0,0.045]
[1643733354093,0.1,39056.0,39052.0,0.045]
[1643733354293,0.07418964,39054.0,39052.0,0.02648627]
[1643733354501,0.373,39053.0,39052.0,0.02648627]
[1643733354696,0.373,39053.0,39052.0,0.00648627]
[1643733354953,0.373,39053.0,39050.0,0.05052127]
[1643733355354,0.25910159,39052.0,39050.0,0.05052127]
[1643733355551,0.50162012,39051.0,39050.0,0.05052127]
[1643733357053,0.3477,39051.0,39050.0,0.05052127]
[1643733357254,0.0253,39053.0,39050.0,0.05052127]
[1643733357853,0.0253,39053.0,39050.0,0.05145904]
[1643733358054,0.16592772,39053.0,39050.0,0.05145904]
[1643733358252,0.3477,39052.0,39050.0,0.05145904]
[1643733358594,0.07923119,39053.0,39050.0,0.04945904]
[1643733358795,0.07923119,39053.0,39050.0,0.04652127]
[1643733358796,0.0253,39053.0,39050.0,0.04652127]
[1643733358998,0.3477,39052.0,39050.0,0.04452127]
[1643733359196,0.0253,39053.0,39050.0,0.04600937]
[1643733359395,0.17189438,39053.0,39050.0,0.04400937]
[1643733359595,0.3477,39052.0,39050.0,0.04200937]
[1643733359797,0.3477,39052.0,39050.0,0.04000937]
[1643733360197,0.3477,39052.0,39050.0,0.03852127]
[1643733360397,0.08724097,39052.0,39050.0,0.03852127]
[1643733361097,0.3477,39051.0,39050.0,0.03852127]
[1643733361399,0.08724097,39052.0,39050.0,0.03852127]
[1643733361996,0.21282531,39051.0,39050.0,0.03852127]
[1643733362196,0.08724097,39052.0,39050.0,0.03852127]
[1643733363238,0.17189438,39053.0,39050.0,0.03852127]
[1643733363438,0.3477,39052.0,39050.0,0.03852127]
[1643733363841,0.18700958,39056.0,39050.0,0.03852127]
[1643733364146,0.3477,39055.0,39050.0,0.03852127]
[1643733364337,0.07806998,39054.0,39050.0,0.03852127]
[1643733364539,0.3477,39053.0,39050.0,0.03852127]
[1643733364737,0.07806998,39054.0,39050.0,0.03852127]
[1643733364940,0.3477,39053.0,39050.0,0.03852127]
[1643733365239,0.61002145,39056.0,39050.0,0.03999894]
[1643733365439,0.3477,39055.0,39050.0,0.03999894]
[1643733366190,0.07327978,39057.0,39050.0,0.03852127]
[1643733366389,0.07438398,39057.0,39050.0,0.03999893]
[1643733366990,0.25254089,39056.0,39050.0,0.03999893]
[1643733367394,0.3477,39055.0,39050.0,0.03852127]
[1643733367590,0.3477,39055.0,39050.0,0.04000664]
[1643733367991,0.07438399,39057.0,39050.0,0.04000664]
[1643733368190,0.19959998,39055.0,39050.0,0.04000664]
[1643733368391,0.3477,39054.0,39050.0,0.04000664]
[1643733368592,0.0253,39055.0,39050.0,0.03852127]
[1643733368792,0.07327978,39057.0,39050.0,0.03852127]
[1643733368793,0.07438398,39057.0,39051.0,0.18043483]
[1643733368992,0.07438398,39057.0,39051.0,0.128049]
[1643733369691,0.07327978,39057.0,39051.0,0.128049]
[1643733369941,0.07438402,39057.0,39051.0,0.128049]
[1643733370840,0.373,39056.0,39051.0,0.128049]
[1643733371240,0.096573,39052.0,39051.0,0.128049]
[1643733372043,0.0253,39056.0,39051.0,0.128049]
[1643733373144,0.0253,39056.0,39051.0,0.30952449]
[1643733373343,0.07327978,39057.0,39051.0,0.30952449]
[1643733373592,0.07327978,39057.0,39051.0,0.128049]
[1643733373593,0.07438138,39057.0,39051.0,0.128049]
[1643733373791,0.07438138,39057.0,39051.0,0.37153504]
[1643733374191,0.07438138,39057.0,39051.0,0.36653504]
[1643733374397,0.07438138,39057.0,39051.0,0.187069]
[1643733374593,0.07327978,39057.0,39051.0,0.36600611]
[1643733374794,0.07438139,39057.0,39051.0,0.187069]
[1643733374993,0.07438139,39057.0,39051.0,0.123049]
[1643733375193,0.07438139,39057.0,39051.0,0.187069]
[1643733375394,0.07438139,39057.0,39051.0,0.30185983]
[1643733375594,0.07438139,39057.0,39051.0,0.123049]
[1643733375794,0.07327978,39057.0,39051.0,0.123049]
[1643733375994,0.07438139,39057.0,39051.0,0.123049]
[1643733376897,0.07327978,39057.0,39051.0,0.123049]
[1643733377095,0.07438139,39057.0,39051.0,0.123049]
[1643733377943,0.3477,39056.0,39051.0,0.3264736]
[1643733378143,0.07327978,39057.0,39051.0,0.123049]
[1643733378344,0.42745146,39056.0,39051.0,0.123049]
[1643733378544,0.32346323,39055.0,39050.0,0.04000471]
[1643733378744,0.373,39054.0,39050.0,0.04000471]
[1643733378946,0.373,39054.0,39050.0,0.00148344]
[1643733379344,0.373,39054.0,39049.0,0.064038]
[1643733379547,0.373,39054.0,39050.0,0.00148339]
[1643733379745,0.0253,39054.0,39050.0,0.00148339]
[1643733380545,0.0253,39054.0,39049.0,0.064038]
[1643733380746,0.22080677,39053.0,39050.0,0.00148339]
[1643733380948,0.3477,39052.0,39050.0,0.00148339]
[1643733381194,0.0253,39054.0,39050.0,0.00148339]
[1643733381395,0.3477,39053.0,39050.0,0.00148339]
[1643733381695,1.02781778,39051.0,39049.0,0.064038]
[1643733381894,0.3477,39050.0,39049.0,0.064038]
[1643733382098,0.25311778,39051.0,39049.0,0.064038]
[1643733382296,0.25311778,39051.0,39047.0,0.0126812]
[1643733382895,0.46436534,39051.0,39047.0,0.0126812]
[1643733383097,0.3477,39050.0,39047.0,0.01416467]
[1643733383297,0.0253,39051.0,39047.0,0.01416467]
[1643733383900,0.2034246,39050.0,39047.0,0.01416467]
[1643733384103,1.62346323,39048.0,39047.0,0.00034221]
[1643733384299,0.473,39048.0,39047.0,0.00182568]
[1643733384499,0.523,39048.0,39047.0,0.00182568]
[1643733384704,0.523,39048.0,39033.0,0.6215]
[1643733384705,2.67082,39047.0,39033.0,0.42]
[1643733384949,1.42712512,39034.0,39033.0,0.42]
[1643733385250,1.90012512,39034.0,39033.0,0.42]
[1643733385447,1.85012512,39034.0,39033.0,0.42]
[1643733385649,1.95012512,39034.0,39026.0,0.03833987]
[1643733385846,0.54737074,39033.0,39026.0,0.03833987]
[1643733386047,0.22381956,39029.0,39026.0,0.03833987]
[1643733386247,0.373,39028.0,39026.0,0.03833987]
[1643733386645,0.49280563,39028.0,39026.0,0.03927483]
[1643733386847,0.373,39028.0,39026.0,0.03927483]
[1643733387446,0.0253,39028.0,39026.0,0.03927483]
[1643733387746,0.11031381,39027.0,39021.0,0.01992336]
[1643733387947,0.23788366,39026.0,39025.0,0.00093498]
[1643733388149,1.2253,39026.0,39025.0,0.00093498]
[1643733388355,0.473,39026.0,39025.0,0.00093498]
[1643733388604,0.373,39026.0,39025.0,0.00093498]
[1643733389004,0.373,39026.0,39020.0,0.2034246]
[1643733389205,0.14166799,39021.0,39020.0,0.2034246]
[1643733389404,0.14166799,39021.0,39019.0,0.42]
[1643733389405,0.0253,39021.0,39019.0,0.42]
[1643733389605,0.0253,39021.0,39018.0,0.16739813]
[1643733389809,0.0216942,39034.0,39020.0,1.5034246]
[1643733390011,0.0469942,39034.0,39023.0,0.05]
[1643733390207,0.0216942,39034.0,39024.0,0.2034246]
[1643733390406,0.1907,39046.0,39025.0,0.01113794]
[1643733390717,0.01026,39049.0,39038.0,0.21731541]
[1643733390906,1.00110469,39052.0,39034.0,0.06404068]
[1643733390907,0.3477,39048.0,39034.0,0.06404068]
[1643733391107,0.1987,39051.0,39034.0,0.06384068]
[1643733391306,0.1987,39051.0,39035.0,0.2032246]
[1643733391507,0.13215458,39045.0,39035.0,0.2032246]
[1643733391706,0.13215458,39045.0,39039.0,0.064043]
[1643733391907,0.21789839,39044.0,39039.0,0.064043]
[1643733392107,0.26789839,39044.0,39034.0,0.25600126]
[1643733392353,0.0253,39043.0,39034.0,0.19195526]
[1643733392543,0.0253,39043.0,39034.0,0.12790926]
[1643733392742,0.12150398,39039.0,39034.0,0.12790926]
[1643733393142,0.17144398,39039.0,39034.0,0.12790926]
[1643733393342,0.04994,39039.0,39034.0,0.12790926]
[1643733393544,0.1253,39043.0,39034.0,0.12790926]
[1643733394342,0.0253,39043.0,39034.0,0.12790926]
[1643733394745,0.11636539,39038.0,39034.0,0.12790926]
[1643733394951,0.373,39037.0,39029.0,0.6057]
[1643733395248,0.0253,39037.0,39032.0,0.00164875]
[1643733395445,0.25335872,39036.0,39032.0,0.00164875]
[1643733395644,0.0253,39035.0,39032.0,0.00164875]
[1643733395847,0.44692988,39034.0,39032.0,0.00164875]
[1643733396095,1.3253,39033.0,39020.0,0.20360424]
[1643733396397,1.3253,39033.0,39017.0,0.73923]
[1643733396398,0.3477,39032.0,39031.0,0.0016487]
[1643733396598,1.78708402,39032.0,39031.0,0.0016487]
[1643733396798,2.09068826,39032.0,39031.0,0.0016487]
[1643733396995,3.38999322,39032.0,39031.0,0.0016487]
[1643733397397,0.2036423,39023.0,39014.0,0.19136272]
[1643733397701,0.373,39022.0,39013.0,0.42]
[1643733397998,0.0253,39022.0,39013.0,0.42]
[1643733398199,0.28542792,39014.0,39013.0,0.42]
[1643733398397,0.52062432,39014.0,39013.0,0.42]
[1643733398598,0.76880431,39014.0,39013.0,0.42]
[1643733398797,0.50867639,39014.0,39013.0,0.42]
[1643733398998,0.16097639,39014.0,39002.0,1.287791]
[1643733399208,0.22996997,39013.0,39002.0,0.6009]
[1643733399497,0.21097639,39014.0,39002.0,0.6009]
[1643733399498,0.0253,39012.0,39002.0,0.6009]
[1643733399696,0.0253,39011.0,39004.0,0.05]
[1643733399958,0.02138071,39025.0,39008.0,0.05]
[1643733400156,0.02138071,39025.0,39005.0,0.31343824]
[1643733400157,0.02138071,39025.0,39014.0,0.05]
[1643733400457,0.02138071,39025.0,39016.0,0.0498]
[1643733400653,0.02138071,39025.0,39020.0,0.19811071]
[1643733401055,0.02138071,39025.0,39021.0,0.06407]
[1643733401252,0.02138071,39025.0,39017.0,0.20360424]
[1643733401453,0.02138071,39025.0,39018.0,0.009806]
[1643733401954,0.26862956,39028.0,39018.0,0.009806]
[1643733402154,0.26862956,39028.0,39019.0,0.064069]
[1643733402155,0.26807326,39028.0,39019.0,0.064069]
[1643733402659,0.14671372,39026.0,39020.0,0.19335174]
[1643733402853,0.00111257,39028.0,39020.0,0.32229223]
[1643733403058,0.00111257,39028.0,39022.0,0.0498]
[1643733403254,0.37042105,39049.0,39029.0,0.064047]
[1643733403453,0.37042105,39049.0,39030.0,0.073834]
[1643733403454,1.0,39040.0,39030.0,0.073834]
[1643733403713,0.11099239,39038.0,39030.0,0.064048]
[1643733404115,0.11099239,39038.0,39028.0,0.128093]
[1643733404317,0.11099239,39038.0,39026.0,0.42]
[1643733404515,0.16099239,39038.0,39026.0,0.42]
[1643733404714,0.21133921,39030.0,39026.0,0.42]
[1643733405115,0.39667471,39030.0,39026.0,0.42]
[1643733405921,0.1253,39029.0,39026.0,0.42]
[1643733406319,0.0253,39029.0,39026.0,0.42]
[1643733406518,0.1853355,39030.0,39026.0,0.42]
[1643733407119,0.1853355,39030.0,39026.0,0.42165237]
[1643733407356,0.45322318,39030.0,39026.0,0.42165237]
[1643733407751,0.473,39029.0,39026.0,0.42165237]
[1643733407950,1.09099834,39027.0,39026.0,0.42165237]
[1643733408151,1.43869834,39027.0,39026.0,0.42]
[1643733408354,0.48869834,39027.0,39026.0,0.42]
[1643733408551,0.67463752,39027.0,39026.0,0.42]
[1643733408752,0.69993752,39027.0,39025.0,0.00165241]
[1643733408950,0.3477,39026.0,39025.0,0.00165241]
[1643733409152,0.0753,39027.0,39025.0,0.00165241]
[1643733409353,0.0753,39027.0,39018.0,1.01095241]
[1643733409551,0.13687958,39024.0,39018.0,1.01095241]
[1643733409751,0.13687958,39024.0,39018.0,0.42]
[1643733409752,0.05,39024.0,39018.0,0.42]
[1643733409954,0.0736736,39022.0,39018.0,0.42]
[1643733410257,0.1489736,39022.0,39018.0,0.42]
[1643733410652,0.26688986,39019.0,39018.0,0.42]
[1643733410856,0.66458986,39019.0,39018.0,0.42110107]
[1643733411097,0.3977,39019.0,39018.0,0.42110107]
[1643733411493,0.3477,39019.0,39018.0,0.42110107]
[1643733411696,0.15061773,39021.0,39018.0,0.42110107]
[1643733411895,0.02158444,39031.0,39018.0,0.42110107]
[1643733411896,0.0239,39028.0,39018.0,0.42]
[1643733412097,0.23481173,39027.0,39018.0,0.42]
[1643733412296,0.0239,39026.0,39018.0,0.42]
[1643733412495,0.09471181,39023.0,39018.0,0.42]
[1643733413096,0.09471181,39023.0,39012.0,1.2459]
[1643733413295,0.0239,39026.0,39019.0,0.0016492]
[1643733413296,0.15214657,39020.0,39019.0,0.0016492]
[1643733413700,0.20214657,39020.0,39019.0,0.0016492]
[1643733414196,0.20214657,39020.0,39014.0,0.064086]
[1643733414396,0.20214657,39020.0,39018.0,0.00164923]
[1643733414597,0.0239,39026.0,39018.0,0.00164923]
[1643733415246,0.00110009,39029.0,39018.0,0.00164923]
[1643733415447,0.1743455,39030.0,39017.0,0.06408]
[1643733415448,0.010264,39030.0,39017.0,0.06408]
[1643733415647,0.13017605,39026.0,39020.0,0.00164916]
[1643733416050,0.18017605,39026.0,39020.0,0.00164916]
[1643733416649,0.08398345,39024.0,39015.0,0.24979099]
[1643733416850,0.08398345,39024.0,39021.0,0.00164913]
[1643733417051,0.13862203,39023.0,39021.0,0.00164913]
[1643733417451,0.18862203,39023.0,39021.0,0.00164913]
[1643733417850,0.18862203,39023.0,39015.0,0.064079]
[1643733418051,0.18862203,39023.0,39020.0,0.00164916]
[1643733418889,0.21966994,39021.0,39020.0,0.00164916]
[1643733419089,0.21966994,39021.0,39013.0,0.2058]
[1643733419298,0.13753494,39017.0,39008.0,0.734565]
[1643733419492,0.18753494,39017.0,39008.0,0.42]
[1643733420292,0.18753494,39017.0,39009.0,0.16353412]
[1643733420491,0.18753494,39017.0,39008.0,0.42]
[1643733420492,0.18753494,39017.0,39011.0,0.00164942]
[1643733420891,0.13753494,39017.0,39011.0,0.00164942]
[1643733421093,0.18753494,39017.0,39011.0,0.00144942]
[1643733421494,0.18753494,39017.0,39006.0,1.5891]
[1643733421893,0.18753494,39017.0,39007.0,0.18253163]
[1643733422093,0.18753494,39017.0,39008.0,0.064091]
[1643733422349,0.11423771,39011.0,39008.0,0.064091]
[1643733422545,0.28888194,39013.0,39004.0,0.5978]
[1643733422744,0.05,39011.0,39004.0,0.42]
[1643733423143,0.28888194,39013.0,39004.0,0.42]
[1643733423144,0.33888194,39013.0,39004.0,0.42]
[1643733423344,0.12527437,39007.0,39004.0,0.42]
[1643733423544,0.12527437,39007.0,38999.0,0.19959575]
[1643733423744,0.17527437,39007.0,38999.0,0.44099575]
[1643733423947,0.17527437,39007.0,39000.0,0.009839]
[1643733424144,0.17527437,39007.0,38999.0,0.44099575]
[1643733424363,0.22333066,39006.0,39004.0,0.01879804]
[1643733424545,0.24723066,39006.0,39004.0,0.01879804]
[1643733424743,1.7477,39005.0,39004.0,0.01879804]
[1643733424942,1.7477,39005.0,38995.0,0.6099]
[1643733424943,0.4477,39005.0,38995.0,0.6099]
[1643733425144,0.05,38999.0,38995.0,0.6099]
[1643733425343,0.33457857,39004.0,38997.0,0.00659859]
[1643733425547,0.0239,39001.0,38997.0,0.00659859]
[1643733425744,0.60127263,39000.0,38997.0,0.00659859]
[1643733425943,0.42272391,38999.0,38997.0,0.00659859]
[1643733426200,0.42272391,38999.0,38984.0,0.1774]
[1643733426201,0.66929346,38998.0,38984.0,0.49158103]
[1643733426405,0.66929346,38998.0,38996.0,0.00164958]
[1643733426406,0.60945573,38998.0,38996.0,0.00164958]
[1643733426705,1.97996286,38997.0,38996.0,0.00164958]
[1643733426900,2.00386286,38997.0,38996.0,0.00164958]
[1643733427102,2.00386286,38997.0,38978.0,0.31431566]
[1643733427103,1.3,38996.0,38978.0,0.31431566]
[1643733427303,0.6763116,38995.0,38978.0,0.00013463]
[1643733427504,0.05,38987.0,38972.0,0.31418103]
[1643733427699,0.0239,38986.0,38972.0,0.31418103]
[1643733427900,0.0239,38985.0,38972.0,0.31418103]
[1643733428102,0.10027934,38985.0,38973.0,0.31418103]
[1643733428301,0.15027934,38985.0,38971.0,0.01]
[1643733428503,0.14658103,38975.0,38971.0,0.01]
[1643733428703,0.22048103,38975.0,38971.0,0.01]
[1643733429702,0.05,38975.0,38972.0,0.55]
[1643733429955,0.0239,38975.0,38971.0,0.17244005]
[1643733430154,0.0239,38984.0,38972.0,0.2146096]
[1643733430356,0.0239,38990.0,38972.0,0.2144096]
[1643733430551,0.0239,38990.0,38972.0,0.2047116]
[1643733430752,0.25164989,38990.0,38974.0,0.063947]
[1643733430950,0.13907105,38984.0,38975.0,0.19976604]
[1643733431151,0.13907105,38984.0,38975.0,0.18081634]
[1643733431352,0.18907105,38984.0,38980.0,0.00149276]
[1643733431750,0.00112119,38992.0,38980.0,0.00149276]
[1643733431959,0.00112119,38992.0,38981.0,0.009477]
[1643733432352,0.05,38998.0,38981.0,0.21410968]
[1643733432353,0.13128761,38998.0,38981.0,0.21410968]
[1643733432553,0.21693191,39003.0,38983.0,0.1672471]
[1643733432752,0.13307738,38995.0,38984.0,0.20463268]
[1643733432951,0.13307738,38995.0,38983.0,0.1672471]
[1643733433151,0.13307738,38995.0,38984.0,0.21409768]
[1643733433353,0.13307738,38995.0,38986.0,0.064129]
[1643733433791,0.00056089,38992.0,38986.0,0.064129]
[1643733433994,0.00056089,38992.0,38984.0,0.01924044]
[1643733434198,0.0239,38991.0,38984.0,0.01924044]
[1643733434396,0.09761439,38991.0,38984.0,0.01924044]
[1643733434597,0.347727,38990.0,38984.0,0.01924044]
[1643733434793,0.12371439,38991.0,38984.0,0.01924044]
[1643733434993,0.12371439,38991.0,38984.0,0.0108799]
[1643733434994,0.28847338,38987.0,38984.0,0.0108799]
[1643733435194,0.76,38985.0,38984.0,0.0108799]
[1643733435397,0.63057212,38985.0,38984.0,0.0108799]
[1643733435595,0.73057212,38985.0,38984.0,0.0108799]
[1643733435994,0.73057212,38985.0,38984.0,0.00924044]
[1643733436394,0.85,38984.0,38983.0,0.00163946]
[1643733436596,0.471627,38984.0,38983.0,0.00163946]
[1643733436796,0.70305681,38984.0,38983.0,0.00163946]
[1643733437199,0.60305681,38984.0,38972.0,0.5893]
[1643733437448,0.2237787,38983.0,38982.0,0.00163949]
[1643733437647,0.7454057,38983.0,38982.0,0.00163949]
[1643733437849,0.521627,38983.0,38982.0,0.00163949]
[1643733438247,0.96055086,38983.0,38967.0,0.5823]
[1643733438447,0.27665487,38977.0,38967.0,0.5823]
[1643733438746,0.0641649,38981.0,38967.0,0.5823]
[1643733438747,0.0239,38980.0,38975.0,0.00655906]
[1643733438946,0.14930531,38976.0,38975.0,0.00655906]
[1643733439346,0.19930531,38976.0,38975.0,0.00655906]
[1643733439548,0.19930531,38976.0,38967.0,0.064158]
[1643733439750,0.19930531,38976.0,38974.0,0.00163971]
[1643733440752,0.05,38976.0,38967.0,0.064159]
[1643733440949,0.05,38976.0,38973.0,0.00163973]
[1643733441218,0.2063717,38983.0,38973.0,0.00163973]
[1643733441441,0.0239,38984.0,38973.0,0.00163973]
[1643733441618,0.05,38983.0,38973.0,0.08993714]
[1643733441819,0.05,38983.0,38973.0,0.00163973]
[1643733442017,0.05,38983.0,38970.0,0.064153]
[1643733442220,0.13188514,38981.0,38976.0,0.00163964]
[1643733442618,0.18188514,38981.0,38976.0,0.00163964]
[1643733443218,0.18188514,38981.0,38971.0,0.2163717]
[1643733443419,0.18188514,38981.0,38977.0,0.00163963]
[1643733444320,0.23519862,38979.0,38971.0,0.02867032]
[1643733444520,0.28519862,38979.0,38977.0,0.00163962]
[1643733444720,0.347727,38978.0,38977.0,0.00163962]
[1643733445542,0.347727,38978.0,38971.0,0.02867032]
[1643733445743,0.28519862,38979.0,38976.0,0.00163966]
[1643733445946,0.347727,38978.0,38976.0,0.00163966]
[1643733446145,1.65599022,38977.0,38976.0,0.00163966]
[1643733446345,2.00371722,38977.0,38976.0,0.00163966]
[1643733446547,0.75371722,38977.0,38976.0,0.00163966]
[1643733446744,0.75371722,38977.0,38971.0,0.01]
[1643733446946,3.016727,38976.0,38975.0,0.00163968]
[1643733447143,1.697727,38976.0,38975.0,0.00163968]
[1643733447344,1.89663584,38976.0,38975.0,0.00163968]
[1643733447548,2.02499334,38976.0,38975.0,0.00163968]
[1643733447743,3.39399334,38976.0,38975.0,0.00163968]
[1643733447943,0.05,38975.0,38971.0,0.01]
[1643733448156,0.05,38975.0,38968.0,0.00655983]
[1643733448157,1.369,38972.0,38968.0,0.00655983]
[1643733448446,1.47849925,38970.0,38954.0,0.00013463]
[1643733448693,1.47849925,38970.0,38951.0,0.00614178]
[1643733448694,0.471627,38969.0,38951.0,0.00614178]
[1643733448994,0.1109562,38954.0,38951.0,0.00614178]
[1643733449296,0.12409809,38955.0,38951.0,0.00614178]
[1643733449493,0.17409809,38955.0,38951.0,0.00614178]
[1643733449696,0.22409809,38955.0,38951.0,0.00614178]
[1643733449894,0.09069294,38953.0,38951.0,0.00614178]
[1643733450102,0.342727,38952.0,38951.0,0.00614178]
[1643733450294,0.366627,38952.0,38951.0,0.00594178]
[1643733450698,0.5183494,38952.0,38951.0,0.00594178]
[1643733451098,0.5683494,38952.0,38951.0,0.00574178]
[1643733451696,0.7183494,38952.0,38951.0,0.00574178]
[1643733451898,0.7183494,38952.0,38944.0,0.00428552]
[1643733451899,1.3,38950.0,38944.0,0.00428552]
[1643733452101,0.20368694,38948.0,38944.0,0.00428552]
[1643733452360,0.20368694,38948.0,38930.0,0.74153463]
[1643733452361,0.22160169,38939.0,38930.0,0.74153463]
[1643733452552,0.22160169,38939.0,38930.0,0.00013463]
[1643733452553,0.0239,38938.0,38930.0,0.00013463]
[1643733452752,0.0239,38938.0,38925.0,0.064223]
[1643733452950,0.05,38937.0,38925.0,0.064223]
[1643733453149,0.05,38937.0,38927.0,0.2063717]
[1643733453350,0.0239,38938.0,38927.0,0.2063717]
[1643733453552,0.18191547,38932.0,38927.0,0.2063717]
[1643733453754,0.22445505,38929.0,38922.0,0.5962]
[1643733453955,0.27445505,38929.0,38921.0,0.01]
[1643733454150,0.13463536,38925.0,38921.0,0.01]
[1643733454351,0.07346196,38925.0,38921.0,0.01]
[1643733455150,0.05,38929.0,38921.0,0.01]
[1643733455354,0.0239,38933.0,38922.0,0.014575]
[1643733455650,0.0239,38933.0,38921.0,0.01105576]
[1643733456093,0.0239,38933.0,38923.0,0.13293161]
[1643733456297,0.01871858,38935.0,38926.0,0.1]
[1643733456497,0.01871858,38935.0,38927.0,0.2209477]
[1643733456696,0.00115106,38946.0,38928.0,1.4]
[1643733456894,0.00115106,38946.0,38934.0,0.0187]
[1643733457293,0.14530792,38942.0,38934.0,0.0187]
[1643733457696,0.14530792,38942.0,38938.0,0.00162578]
[1643733458496,0.00115145,38946.0,38938.0,0.00162578]
[1643733458696,0.30156021,38948.0,38935.0,0.21163454]
[1643733458896,0.30156021,38948.0,38938.0,0.00162578]
[1643733459197,0.00115145,38946.0,38938.0,0.00162578]
[1643733459399,0.12245541,38944.0,38938.0,0.00162578]
[1643733459598,0.00115145,38946.0,38938.0,0.00162578]
[1643733459852,0.03591,38948.0,38935.0,0.21163454]
[1643733460145,0.00115151,38946.0,38940.0,0.00162573]
[1643733460548,0.14522561,38945.0,38940.0,0.00162573]
[1643733460746,0.00115151,38946.0,38940.0,0.00162573]
[1643733460949,0.00115151,38946.0,38941.0,0.014554]
[1643733461157,0.0357741,38948.0,38941.0,0.014554]
[1643733461447,0.00115154,38946.0,38941.0,0.0016257]
[1643733461847,0.13767495,38946.0,38941.0,0.0016257]
[1643733462046,0.00115154,38946.0,38942.0,0.014549]
[1643733462447,0.0357741,38948.0,38942.0,0.01617467]
[1643733462646,0.00115157,38946.0,38942.0,0.00162567]
[1643733463049,0.00115157,38946.0,38943.0,0.014546]
[1643733463247,0.00115157,38946.0,38944.0,0.014546]
[1643733463449,0.17350834,38949.0,38938.0,0.1142]
[1643733463694,0.00115157,38947.0,38942.0,0.00162569]
[1643733464496,0.08162119,38946.0,38942.0,0.00162569]
[1643733464695,0.58181632,38945.0,38941.0,0.0185421]
[1643733464994,0.347739,38945.0,38942.0,0.00162568]
[1643733465193,0.26899204,38943.0,38941.0,0.00516778]
[1643733465394,0.01337432,38942.0,38941.0,0.00516778]
[1643733465793,0.01337432,38942.0,38941.0,0.75516778]
[1643733465995,0.01337432,38942.0,38941.0,0.76948978]
[1643733466195,0.01337432,38942.0,38941.0,0.75470778]
[1643733466798,0.06620648,38961.0,38942.0,0.9]
[1643733466998,0.002,38961.0,38943.0,0.21634162]
[1643733467197,0.002,38961.0,38944.0,0.0472]
[1643733467451,0.00115522,38952.0,38945.0,0.21633862]
[1643733467651,0.00115522,38952.0,38945.0,0.26633862]
[1643733467847,0.00115522,38952.0,38948.0,0.18442385]
[1643733468048,0.00115522,38952.0,38949.0,0.061736]
[1643733468254,0.24147658,38960.0,38949.0,0.061736]
[1643733468452,0.0799174,38957.0,38949.0,0.0472]
[1643733468648,0.00115522,38952.0,38949.0,0.0472]
[1643733469049,0.00115522,38952.0,38944.0,0.20180262]
[1643733469248,0.12891691,38950.0,38943.0,1.1775]
[1643733469549,0.002,38961.0,38944.0,0.18013596]
[1643733469550,0.18047777,38961.0,38944.0,0.18013596]
[1643733469748,0.052,38961.0,38944.0,0.09323014]
[1643733469949,0.052,38961.0,38945.0,0.2307933]
[1643733469950,0.00115522,38948.0,38945.0,0.2307933]
[1643733470150,0.002,38961.0,38946.0,0.014534]